bitfinex/quotes_ETHUSD_20230113
["timestamp","ask_amount","ask_price","bid_price","bid_amount"]
[1673586520543,0.28124021,1411.0,1410.8,15.23602706]
[1673586521953,0.28124021,1411.0,1410.8,1.06253569]
[1673586522122,0.28124021,1411.0,1410.8,3.0]
[1673586522908,13.03466006,1411.0,1410.8,3.0]
[1673586523096,1.30346601,1410.9,1410.7,10.31676015]
[1673586523286,1.30346601,1410.9,1410.7,10.25076015]
[1673586524064,8.39114601,1410.9,1410.7,10.25076015]
[1673586524236,8.45714601,1410.9,1410.7,10.25076015]
[1673586524435,8.45714601,1410.9,1410.7,9.18822446]
[1673586524436,0.8457146,1410.8,1410.7,9.18822446]
[1673586524780,0.8457146,1410.8,1410.7,12.18822446]
[1673586525205,0.8457146,1410.8,1410.7,3.10522446]
[1673586525374,1.30346601,1410.9,1410.7,3.10522446]
[1673586528600,8.39113601,1410.9,1410.7,3.10522446]
[1673586528761,8.45713601,1410.9,1410.7,0.10522446]
[1673586529177,1.36946601,1410.9,1410.7,0.10522446]
[1673586529403,1.30346601,1410.9,1410.7,0.10522446]
[1673586529612,1.2263466,1410.8,1410.7,0.10522446]
[1673586530863,2.53761704,1410.8,1410.7,0.10522446]
[1673586534293,1.44161704,1410.8,1410.7,0.10522446]
[1673586536623,1.44161704,1410.8,1410.7,1.16776015]
[1673586537494,1.44161704,1410.8,1410.7,0.10522446]
[1673586538485,8.52978704,1410.8,1410.7,0.10522446]
[1673586538655,8.59578704,1410.8,1410.7,0.10522446]
[1673586541371,8.59243772,1410.8,1410.7,0.10522446]
[1673586543501,1.50426772,1410.8,1410.7,0.10522446]
[1673586543690,1.43826772,1410.8,1410.7,0.10522446]
[1673586544730,1.43826772,1410.8,1410.7,1.16776015]
[1673586545639,1.31127044,1410.8,1410.7,1.16776015]
[1673586545791,1.31127044,1410.8,1410.7,28.53618066]
[1673586545995,1.31127044,1410.8,1410.7,33.75072854]
[1673586547100,1.31127044,1410.8,1410.7,29.5941136]
[1673586548683,1.31127044,1410.8,1410.7,28.00170309]
[1673586548887,1.31127044,1410.8,1410.7,31.94606071]
[1673586549618,1.31127044,1410.8,1410.7,33.53788889]
[1673586554043,1.31127044,1410.8,1410.7,5.75863553]
[1673586554243,1.31127044,1410.8,1410.7,4.16680735]
[1673586554461,1.31127044,1410.8,1410.7,5.75863553]
[1673586554781,1.31127044,1410.8,1410.7,4.16680735]
[1673586557533,1.31127044,1410.8,1410.7,1.16680735]
[1673586557865,2.15777448,1410.8,1410.7,1.16680735]
[1673586560225,2.15777448,1410.8,1410.7,0.10522446]
[1673586560437,9.24594448,1410.8,1410.7,0.10522446]
[1673586560693,9.31194448,1410.8,1410.7,0.10522446]
[1673586560924,11.31194448,1410.8,1410.7,0.10522446]
[1673586561096,9.31194448,1410.8,1410.6,4.18786205]
[1673586561311,0.93119445,1410.7,1410.6,4.18786205]
[1673586561655,8.01986445,1410.7,1410.6,4.18786205]
[1673586561954,8.08586445,1410.7,1410.6,3.12627916]
[1673586562541,8.08586445,1410.7,1410.6,0.12627916]
[1673586564338,31.76015211,1410.7,1410.6,0.12627916]
[1673586564567,27.60353717,1410.7,1410.6,0.12627916]
[1673586564909,31.76015211,1410.7,1410.6,0.12627916]
[1673586565848,27.60353717,1410.7,1410.6,0.12627916]
[1673586568167,31.76015211,1410.7,1410.6,0.12627916]
[1673586568561,27.60353717,1410.7,1410.6,0.12627916]
[1673586569370,31.76015211,1410.7,1410.6,0.12627916]
[1673586569787,32.8192532,1410.7,1410.5,0.1201096]
[1673586570041,9.19234793,1410.6,1410.5,0.1201096]
[1673586570357,30.52588793,1410.6,1410.5,0.1201096]
[1673586570780,32.03588793,1410.6,1410.5,0.1201096]
[1673586570999,36.19250287,1410.6,1410.5,0.1201096]
[1673586571522,41.64846493,1410.6,1410.5,0.1201096]
[1673586571675,37.25160396,1410.6,1410.5,0.1201096]
[1673586571889,38.75060396,1410.6,1410.5,0.1201096]
[1673586572537,37.69150287,1410.6,1410.5,0.1201096]
[1673586573253,38.75060396,1410.6,1410.5,0.1201096]
[1673586573616,37.69150287,1410.6,1410.5,0.1201096]
[1673586574637,39.18850287,1410.6,1410.5,0.1201096]
[1673586575112,39.18650287,1410.6,1410.5,0.1201096]
[1673586575284,39.18850287,1410.6,1410.5,0.1201096]
[1673586578708,37.68950287,1410.6,1410.5,0.1201096]
[1673586579011,37.68950287,1410.6,1410.3,0.16778833]
[1673586579012,17.45495029,1410.5,1410.3,0.16778833]
[1673586579232,36.71399646,1410.4,1410.3,0.16778833]
[1673586579533,40.48846371,1410.4,1410.3,0.16778833]
[1673586579745,39.77999646,1410.4,1410.3,0.16778833]
[1673586579953,42.78899646,1410.4,1410.3,0.16778833]
[1673586580277,49.96929372,1410.4,1410.3,0.16778833]
[1673586581382,11.686,1410.2,1410.1,0.16894231]
[1673586581625,53.12670766,1410.2,1410.1,0.16894231]
[1673586582162,64.37970766,1410.2,1410.1,0.16894231]
[1673586582507,71.56000492,1410.2,1410.1,0.16894231]
[1673586582640,69.56000492,1410.2,1410.1,0.16894231]
[1673586583006,62.46881492,1410.2,1410.1,0.16894231]
[1673586583639,50.78281492,1410.2,1410.1,0.16894231]
[1673586584326,50.83245479,1410.2,1410.1,0.16894231]
[1673586587402,50.83245479,1410.2,1410.1,0.16684692]
[1673586589736,2.0,1410.1,1410.0,0.19039494]
[1673586589909,24.03067877,1410.1,1410.0,0.04039494]
[1673586590117,24.09667877,1410.1,1410.0,0.04039494]
[1673586590765,9.91329877,1410.1,1410.0,0.04039494]
[1673586592730,9.91129877,1410.1,1410.0,0.04039494]
[1673586592940,9.91329877,1410.1,1410.0,0.04039494]
[1673586593581,31.18836877,1410.1,1410.0,0.04039494]
[1673586594010,9.91329877,1410.1,1410.0,0.04039494]
[1673586594234,3.90233272,1410.1,1410.0,0.04039494]
[1673586594563,3.60633272,1410.1,1410.0,7.13258494]
[1673586594778,1.55010761,1410.2,1410.0,7.13258494]
[1673586594992,1.48410761,1410.2,1410.0,15.72477494]
[1673586595206,1.48410761,1410.2,1410.1,15.75585749]
[1673586595360,1.48410761,1410.2,1410.1,22.26585749]
[1673586595569,1.48410761,1410.2,1410.1,6.08247749]
[1673586595985,1.48410761,1410.2,1410.1,3.0]
[1673586596878,1.48410761,1410.2,1410.0,7.19858494]
[1673586597051,3.60633272,1410.1,1410.0,0.04039494]
[1673586597262,3.83633272,1410.1,1410.0,0.04039494]
[1673586601155,3.83633272,1410.1,1410.0,1e-08]
[1673586601804,5.08409875,1410.1,1410.0,1e-08]
[1673586602134,5.15009875,1410.1,1410.0,1e-08]
[1673586605204,5.14809875,1410.1,1410.0,1e-08]
[1673586605351,5.15009875,1410.1,1410.0,1e-08]
[1673586611540,5.15009875,1410.1,1409.9,15.35922484]
[1673586611884,0.23,1410.0,1409.9,15.35922484]
[1673586613800,1.55010761,1410.2,1409.9,16.95105302]
[1673586613952,1.48410761,1410.2,1410.0,1.205]
[1673586614167,1.48410761,1410.2,1410.1,16.18338]
[1673586614420,1.48410761,1410.2,1410.1,15.24467975]
[1673586616009,1.48410761,1410.2,1410.0,12.07502681]
[1673586616010,6.34844109,1410.2,1410.0,2.71912793]
[1673586616160,3.83633272,1410.1,1409.9,1.2396417]
[1673586616376,3.98996599,1410.0,1409.9,1.1736417]
[1673586616913,4.21996599,1410.0,1409.9,1.1736417]
[1673586617782,4.21996599,1410.0,1409.9,2.76546988]
[1673586618263,3.83633272,1410.0,1409.9,1.70417013]
[1673586621310,0.23,1410.0,1409.9,10.91733876]
[1673586621586,2.80810837,1410.2,1409.9,26.30639414]
[1673586621747,6.34844109,1410.2,1410.0,2.65575017]
[1673586622094,6.41444109,1410.2,1410.0,9.74774017]
[1673586624199,0.64144411,1410.1,1410.0,9.74774017]
[1673586624596,0.64144411,1410.1,1410.0,8.15429007]
[1673586628874,0.64144411,1410.1,1410.0,9.74774017]
[1673586629957,6.41444109,1410.2,1410.0,9.74774017]
[1673586630178,6.41444109,1410.2,1410.0,9.74773153]
[1673586631028,6.41444109,1410.2,1410.1,1.06229143]
[1673586631197,6.64444109,1410.2,1410.1,1.06229143]
[1673586631832,1.78010761,1410.2,1410.1,10.95243153]
[1673586632056,1.78010761,1410.2,1410.1,27.13581153]
[1673586632057,1.71410761,1410.2,1410.1,27.13581153]
[1673586632269,1.48410761,1410.2,1410.1,26.0735201]
[1673586632710,1.48410761,1410.2,1410.1,27.99388337]
[1673586633709,1.48410761,1410.2,1410.1,30.114352]
[1673586633710,1.48063842,1410.2,1410.1,30.114352]
[1673586636282,1.48063842,1410.2,1410.1,24.0735201]
[1673586636656,1.48063842,1410.2,1410.1,24.0755201]
[1673586636900,1.48063842,1410.2,1410.1,24.0735201]
[1673586638245,1.48063842,1410.2,1410.1,25.13489823]
[1673586640012,1.48063842,1410.2,1410.1,24.0735201]
[1673586640274,1.48063842,1410.2,1410.1,28.85610308]
[1673586640483,1.48063842,1410.2,1410.1,27.79483111]
[1673586642269,1.48063842,1410.2,1410.1,28.85601172]
[1673586643288,1.48063842,1410.2,1410.1,25.13470071]
[1673586646134,5.08697114,1410.2,1410.1,2.65463071]
[1673586646343,5.38297114,1410.2,1410.0,0.066]
[1673586646553,0.98941139,1410.0,1409.9,1.70579205]
[1673586646769,0.98941139,1410.0,1409.9,2.76707168]
[1673586646955,0.98941139,1410.0,1409.9,1.17362158]
[1673586648576,4.59574411,1410.0,1409.9,1.17362158]
[1673586648740,5.34574823,1410.0,1409.9,0.11234195]
[1673586648953,5.41174823,1410.0,1409.9,1.17362158]
[1673586650493,5.18174823,1410.0,1409.9,8.26632158]
[1673586650818,1.05541139,1410.0,1409.9,15.35902158]
[1673586651029,0.98941139,1410.0,1409.9,15.35902158]
[1673586651338,0.98941139,1410.0,1409.9,16.95247168]
[1673586651739,0.98941139,1410.0,1409.9,24.04517168]
[1673586651929,0.98941139,1410.0,1409.9,22.98389205]
[1673586652134,0.98941139,1410.0,1409.9,25.10436068]
[1673586653218,0.98941139,1410.0,1409.9,22.98389205]
[1673586654144,0.98941139,1410.0,1409.9,24.04510689]
[1673586654358,0.98941139,1410.0,1409.9,1.70579205]
[1673586656261,0.98941139,1410.0,1409.9,8.79849205]
[1673586658363,0.98941139,1410.0,1409.9,1.70579205]
[1673586658769,0.98941139,1410.0,1409.9,8.79849205]
[1673586660602,0.98941139,1410.0,1409.9,9.85997555]
[1673586662488,4.74851496,1410.0,1409.9,9.85997555]
[1673586662674,4.97851496,1410.0,1409.9,0.11234195]
[1673586665381,4.87851496,1410.0,1409.9,0.11234195]
[1673586670256,1.27218224,1410.0,1409.9,0.11234195]
[1673586670571,0.88941139,1410.0,1409.9,22.45192545]
[1673586671385,0.88941139,1410.0,1409.9,21.39044195]
[1673586671590,0.88941139,1410.0,1409.9,22.45192545]
[1673586677085,9.16333842,1410.2,1409.9,22.45192545]
[1673586677299,3.60633272,1410.1,1409.9,22.45192545]
[1673586677985,3.60633272,1410.1,1409.9,15.35922545]
[1673586679137,3.60633272,1410.0,1409.9,0.11234195]
[1673586679511,5.83633272,1410.0,1409.9,0.11234195]
[1673586679658,5.90233272,1410.0,1409.9,0.11234195]
[1673586679869,13.71233299,1410.0,1409.9,0.11234195]
[1673586681559,6.62014299,1410.0,1409.9,0.11234195]
[1673586688436,3.66990459,1410.0,1409.9,10.26652545]
[1673586688598,3.60390459,1410.0,1409.9,8.26652545]
[1673586689048,3.60390459,1410.0,1409.9,7.20504195]
[1673586689679,3.60390459,1410.0,1409.9,8.26652545]
[1673586689902,0.066,1410.1,1409.9,15.35922545]
[1673586690227,3.60633272,1410.1,1409.9,15.35922545]
[1673586691569,3.60633272,1410.1,1409.9,16.95267555]
[1673586692484,1.54663842,1410.2,1409.9,20.5012757]
[1673586692693,1.54663842,1410.2,1409.9,27.5939757]
[1673586692694,5.08697114,1410.2,1409.9,27.5939757]
[1673586692903,5.15297114,1410.2,1409.9,27.5939757]
[1673586693750,5.15297114,1410.2,1410.0,3.60356155]
[1673586694010,5.15297114,1410.2,1410.0,5.19701165]
[1673586694180,5.15297114,1410.2,1410.0,17.78727155]
[1673586694382,5.15297114,1410.2,1410.0,19.38072165]
[1673586696176,5.15297114,1410.2,1410.0,17.78727155]
[1673586697051,5.15297114,1410.2,1410.0,19.38072165]
[1673586697268,1.54663842,1410.2,1410.1,3.77872715]
[1673586697420,1.48063842,1410.2,1410.1,7.09169]
[1673586702110,1.48063842,1410.2,1410.1,14.18338]
[1673586702284,1.48063842,1410.2,1410.1,15.2448635]
[1673586703802,1.48063842,1410.2,1410.1,14.18338]
[1673586705353,1.48063842,1410.2,1410.1,24.99036466]
[1673586705535,1.48063842,1410.2,1410.1,28.53933126]
[1673586705741,1.48063842,1410.2,1410.1,35.6959462]
[1673586706193,1.48063842,1410.2,1410.1,31.53933126]
[1673586707278,1.48063842,1410.2,1410.1,33.65979989]
[1673586707490,1.48063842,1410.2,1410.1,37.81641483]
[1673586707703,1.48063842,1410.2,1410.1,37.81412777]
[1673586708124,1.48063842,1410.2,1410.1,35.69365914]
[1673586708287,1.48063842,1410.2,1410.1,33.65751283]
[1673586708494,1.48063842,1410.2,1410.1,31.5370442]
[1673586708736,1.47827274,1410.2,1410.1,31.5370442]
[1673586711338,1.47827274,1410.2,1410.1,32.59708515]
[1673586712340,1.47827274,1410.2,1410.1,31.00592211]
[1673586712658,1.47827274,1410.2,1410.1,32.59708515]
[1673586713881,1.47827274,1410.2,1410.1,31.00592211]
[1673586714121,1.47827274,1410.2,1410.1,32.59708515]
[1673586714291,1.47827274,1410.2,1410.1,31.5370442]
[1673586715976,1.47827274,1410.2,1410.1,42.92546049]
[1673586717907,1.47827274,1410.2,1410.1,43.98497141]
[1673586718283,1.47827274,1410.2,1410.1,53.06297141]
[1673586718493,1.47827274,1410.2,1410.1,53.06797141]
[1673586718760,1.47827274,1410.2,1410.1,50.94750278]
[1673586719283,2.74e-06,1410.2,1410.1,51.68656723]
[1673586719491,11.23961502,1410.8,1410.1,51.68656723]
[1673586719492,11.30561502,1410.8,1410.1,60.26186723]
[1673586719817,11.30561502,1410.8,1410.6,1.504]
[1673586719965,11.30561502,1410.8,1410.7,7.08867]
[1673586720176,11.30561502,1410.8,1410.7,5.2130938]
[1673586720644,0.11221502,1410.8,1410.7,5.2130938]
[1673586720840,0.87179132,1410.8,1410.7,5.2130938]
[1673586721587,0.04621502,1410.8,1410.7,5.2130938]
[1673586723682,1.04121502,1410.8,1410.7,5.2130938]
[1673586724759,0.04621502,1410.8,1410.7,5.2130938]
[1673586729788,1.09982657,1410.8,1410.7,5.2130938]
[1673586730152,0.04621502,1410.8,1410.7,5.2130938]
[1673586730413,0.16764248,1410.8,1410.7,5.2130938]
[1673586731782,1.22125403,1410.8,1410.7,5.2130938]
[1673586732520,2.97971399,1410.8,1410.7,5.2130938]
[1673586734898,1.22125403,1410.8,1410.7,5.2130938]
[1673586735630,1.09982657,1410.8,1410.7,5.2130938]
[1673586735857,2.85825662,1410.8,1410.7,12.3017638]
[1673586736927,0.04621502,1410.8,1410.7,12.3017638]
[1673586737841,0.04621502,1410.8,1410.7,5.2130938]
[1673586738204,1.09982657,1410.8,1410.7,5.2130938]
[1673586738362,0.31961784,1410.8,1410.7,5.2130938]
[1673586738572,1.37322939,1410.8,1410.7,5.2130938]
[1673586739114,3.13163467,1410.8,1410.7,5.2130938]
[1673586739324,1.37322939,1410.8,1410.7,5.2130938]
[1673586740106,3.1316273,1410.8,1410.7,5.2130938]
[1673586740405,3.1316273,1410.8,1410.7,3.33746697]
[1673586741454,3.1316273,1410.8,1410.7,3.33368153]
[1673586741785,2.85822448,1410.8,1410.7,3.33368153]
[1673586742773,1.09982657,1410.8,1410.7,3.33368153]
[1673586742989,0.04621502,1410.8,1410.7,3.33368153]
[1673586743722,1.09982657,1410.8,1410.7,3.33368153]
[1673586744398,2.85815147,1410.8,1410.7,3.33368153]
[1673586746350,2.85815147,1410.8,1410.7,10.42235153]
[1673586750760,1.09982657,1410.8,1410.7,10.42235153]
[1673586750970,1.09982657,1410.8,1410.7,10.47235153]
[1673586751210,2.85815527,1410.8,1410.7,10.47235153]
[1673586752491,3.52545729,1410.8,1410.7,10.47235153]
[1673586753076,3.52545729,1410.8,1410.7,10.42235153]
[1673586754348,2.85815527,1410.8,1410.7,10.42235153]
[1673586756255,4.44390893,1410.8,1410.7,10.42235153]
[1673586756446,2.85815527,1410.8,1410.7,10.42235153]
[1673586757710,4.44390893,1410.8,1410.7,10.42235153]
[1673586759316,15.95413467,1410.8,1410.6,0.066]
[1673586759528,15.95413467,1410.8,1410.4,11.28874365]
[1673586759529,5.99750942,1410.7,1410.4,11.28874365]
[1673586759706,5.99750942,1410.7,1410.4,9.63427746]
[1673586759707,15.00033344,1410.7,1410.4,9.63427746]
[1673586759924,17.6379923,1410.7,1410.4,9.63427746]
[1673586760115,1.05801359,1410.6,1410.4,9.63427746]
[1673586760482,2.82181282,1410.6,1410.4,16.72444746]
[1673586762357,6.42814554,1410.6,1410.4,8.14914746]
[1673586762554,13.58350554,1410.6,1410.4,1.05897746]
[1673586763114,13.58150554,1410.6,1410.4,0.002]
[1673586763415,13.58150554,1410.6,1410.3,19.82829365]
[1673586763416,13.58344554,1410.6,1410.3,19.82829365]
[1673586763731,6.49414554,1410.6,1410.3,19.82829365]
[1673586767516,6.49414554,1410.6,1410.5,0.05]
[1673586767725,0.05,1410.4,1410.3,26.91878365]
[1673586769470,0.05,1410.4,1410.3,25.33031746]
[1673586769687,0.05,1410.4,1410.3,22.33031746]
[1673586774424,4.66434631,1410.6,1410.3,22.33031746]
[1673586774633,7.00693104,1410.6,1410.3,22.33031746]
[1673586774842,7.07293104,1410.6,1410.3,23.91878365]
[1673586775070,3.46659832,1410.6,1410.3,23.91878365]
[1673586775259,16.15593048,1410.7,1410.3,23.91878365]
[1673586775260,13.12317682,1410.7,1410.4,2.0]
[1673586775464,14.09165978,1410.7,1410.4,17.23866746]
[1673586775888,14.09165978,1410.7,1410.4,15.23866746]
[1673586778649,25.40381913,1410.7,1410.4,14.17969]
[1673586778858,4.54038191,1410.6,1410.4,14.17969]
[1673586779093,2.54038191,1410.6,1410.4,14.17969]
[1673586779688,3.83397394,1410.5,1410.3,1.12497746]
[1673586779900,3.98973011,1410.4,1410.2,25.67364053]
[1673586780118,3.60633272,1410.4,1410.3,1.05897746]
[1673586780447,3.83633272,1410.4,1410.3,1.05897746]
[1673586780661,3.83633272,1410.4,1410.2,24.61466307]
[1673586780662,3.83633272,1410.4,1410.2,25.67364053]
[1673586780877,3.83633272,1410.4,1410.2,25.60764053]
[1673586781183,4.42656599,1410.4,1410.2,25.60764053]
[1673586782519,3.83633272,1410.4,1410.2,25.60764053]
[1673586783797,1.72126591,1410.3,1410.2,25.60764053]
[1673586784572,1.72126591,1410.3,1410.2,16.83274053]
[1673586786281,1.72126591,1410.3,1410.2,15.24427434]
[1673586788979,1.71896113,1410.3,1410.2,15.24427434]
[1673586789259,1.71896113,1410.3,1410.2,15.24627434]
[1673586789471,1.71896113,1410.3,1410.2,15.24427434]
[1673586790054,1.71896113,1410.3,1410.2,16.83274053]
[1673586790425,1.71896113,1410.3,1410.2,15.24427434]
[1673586793720,1.71896113,1410.3,1410.2,19.59485207]
[1673586793878,1.71896113,1410.3,1410.2,26.68604207]
[1673586794757,1.71896113,1410.3,1410.2,25.62706461]
[1673586795854,1.71896113,1410.3,1410.2,25.62906461]
[1673586795982,1.71896113,1410.3,1410.2,27.14006461]
[1673586797590,1.71896113,1410.3,1410.2,29.25801952]
[1673586798136,1.71896113,1410.3,1410.2,27.66955333]
[1673586799606,1.71896113,1410.3,1410.2,26.15655333]
[1673586804308,1.71896113,1410.3,1410.2,23.39444179]
[1673586806615,1.71896113,1410.3,1410.2,26.04511575]
[1673586806833,1.71896113,1410.3,1410.2,26.05175077]
[1673586809141,1.71651136,1410.3,1410.2,23.40107681]
[1673586815606,1.71651136,1410.3,1410.2,26.05175077]
[1673586815824,1.71651136,1410.3,1410.2,29.52376785]
[1673586817392,1.71651136,1410.3,1410.2,26.87309389]
[1673586817719,1.71651136,1410.3,1410.2,29.52376785]
[1673586818230,1.71651136,1410.3,1410.2,28.91217792]
[1673586818443,1.71651136,1410.3,1410.2,31.91217792]
[1673586819675,1.71651136,1410.3,1410.2,33.42517792]
[1673586820281,1.71651136,1410.3,1410.2,33.42717792]
[1673586820439,1.71651136,1410.3,1410.2,33.42517792]
[1673586820659,1.71651136,1410.3,1410.2,30.77450396]
[1673586821285,1.71651136,1410.3,1410.2,33.43027105]
[1673586822334,1.71651136,1410.3,1410.2,29.05682376]
[1673586824736,1.71651136,1410.3,1410.2,26.40105667]
[1673586828071,1.71651136,1410.3,1410.2,29.05682376]
[1673586830529,1.7141665,1410.3,1410.2,29.05682376]
[1673586831678,1.7141665,1410.3,1410.2,26.98225397]
[1673586832210,1.7141665,1410.3,1410.2,29.10740907]
[1673586833660,1.7141665,1410.3,1410.2,5.65896397]
[1673586833848,1.7141665,1410.3,1410.2,26.93232397]
[1673586834070,1.7141665,1410.3,1410.2,31.16348975]
[1673586834487,1.7141665,1410.3,1410.2,27.99624694]
[1673586835643,1.7141665,1410.3,1410.2,25.8707149]
[1673586837029,1.7141665,1410.3,1410.2,27.99624694]
[1673586837252,1.7141665,1410.3,1410.2,26.40208892]
[1673586840306,1.7141665,1410.3,1410.2,29.05785601]
[1673586840525,1.7141665,1410.3,1410.2,29.46487452]
[1673586842256,1.7141665,1410.3,1410.2,32.12064161]
[1673586843710,1.7141665,1410.3,1410.2,29.99510957]
[1673586846441,1.7141665,1410.3,1410.2,26.93031803]
[1673586849708,1.7141665,1410.3,1410.2,28.44331803]
[1673586854430,1.7141665,1410.3,1410.2,29.95631803]
[1673586855691,1.7141665,1410.3,1410.2,34.60680349]
[1673586856906,1.7141665,1410.3,1410.2,36.5560321]
[1673586856907,6.5e-06,1410.3,1410.2,36.5560321]
[1673586857160,11.83251502,1410.8,1410.3,2.0]
[1673586857380,11.89851502,1410.8,1410.6,4.16590825]
[1673586857698,11.89851502,1410.8,1410.7,22.3279733]
[1673586858310,0.11221502,1410.8,1410.7,21.26601]
[1673586858535,0.04621502,1410.8,1410.7,21.26601]
[1673586861931,0.04621502,1410.8,1410.7,22.6138684]
[1673586866848,0.04621502,1410.8,1410.7,24.1268684]
[1673586867309,0.04621502,1410.8,1410.7,27.1268684]
[1673586867987,0.04621502,1410.8,1410.7,28.1888317]
[1673586869931,0.04621502,1410.8,1410.7,32.32144982]
[1673586871456,0.04621502,1410.8,1410.7,28.1888317]
[1673586871682,0.04621502,1410.8,1410.7,32.32144982]
[1673586872130,0.04621502,1410.8,1410.7,33.91439477]
[1673586872343,0.04621502,1410.8,1410.7,32.32144982]
[1673586874289,0.04621502,1410.8,1410.7,33.91439477]
[1673586874500,0.04621502,1410.8,1410.7,32.32144982]
[1673586875384,0.04621502,1410.8,1410.7,28.1888317]
[1673586875967,0.04621502,1410.8,1410.7,32.32144982]
[1673586876441,0.04621502,1410.8,1410.7,35.92778254]
[1673586877184,0.04621502,1410.8,1410.7,35.92978254]
[1673586877489,0.04621502,1410.8,1410.7,37.52072749]
[1673586878084,0.0441196,1410.8,1410.7,37.52072749]
[1673586879440,0.0441196,1410.8,1410.7,28.1888317]
[1673586879693,0.0441196,1410.8,1410.7,27.1268684]
[1673586882246,0.0441196,1410.8,1410.7,31.25948652]
[1673586882554,0.0441196,1410.8,1410.7,32.32144982]
[1673586882720,0.0441196,1410.8,1410.7,28.1888317]
[1673586883556,0.0441196,1410.8,1410.7,27.1268684]
[1673586883770,0.0441196,1410.8,1410.7,25.77901]
[1673586887130,0.0441196,1410.8,1410.7,26.8409733]
[1673586887380,0.0441196,1410.8,1410.7,30.97359142]
[1673586888433,0.0441196,1410.8,1410.7,26.8409733]
[1673586890441,0.0441196,1410.8,1410.7,28.43391825]
[1673586890602,0.0441196,1410.8,1410.7,33.26234373]
[1673586892434,0.0441196,1410.8,1410.7,32.20038043]
[1673586892816,0.0441196,1410.8,1410.7,33.26017657]
[1673586893035,0.0441196,1410.8,1410.7,33.26017849]
[1673586894316,0.0441196,1410.8,1410.7,32.20038043]
[1673586894811,0.0441196,1410.8,1410.7,33.26093553]
[1673586895026,0.0441196,1410.8,1410.7,32.20038043]
[1673586896635,0.0441196,1410.8,1410.7,34.32430703]
[1673586899651,0.04183237,1410.8,1410.7,34.32430703]
[1673586900484,0.04183237,1410.8,1410.7,32.73136208]
[1673586900732,0.04183237,1410.8,1410.7,35.38627034]
[1673586900899,0.04183237,1410.8,1410.7,32.73136208]
[1673586902010,0.04183237,1410.8,1410.7,35.38627034]
[1673586904888,0.04183237,1410.8,1410.7,33.87327034]
[1673586906286,0.04183237,1410.8,1410.7,31.74934374]
[1673586918270,0.04183237,1410.8,1410.7,29.04572757]
[1673586920734,0.04183237,1410.8,1410.7,26.39081931]
[1673586921105,0.04183237,1410.8,1410.7,29.04572757]
[1673586922122,0.04183237,1410.8,1410.7,26.92091826]
[1673586922288,0.04183237,1410.8,1410.7,29.0457076]
[1673586922628,0.04183237,1410.8,1410.7,26.92091826]
[1673586923786,0.04183237,1410.8,1410.7,29.04572644]
[1673586924337,0.03894643,1410.8,1410.7,29.04572644]
[1673586924637,0.03894643,1410.8,1410.7,31.4468319]
[1673586926274,0.03894643,1410.8,1410.7,28.79192364]
[1673586926623,0.03894643,1410.8,1410.7,31.44796437]
[1673586926828,0.03894643,1410.8,1410.7,28.79192364]
[1673586927041,0.03894643,1410.8,1410.7,31.44796385]
[1673586927374,0.03894643,1410.8,1410.7,38.0870574]
[1673586927746,0.03894643,1410.8,1410.7,33.95443928]
[1673586928798,0.03894643,1410.8,1410.7,38.0870574]
[1673586929749,0.03894643,1410.8,1410.7,33.95443928]
[1673586929991,0.03894643,1410.8,1410.7,41.69339012]
[1673586930198,6.43e-06,1410.8,1410.7,43.20639012]
[1673586930388,0.04844798,1410.9,1410.7,43.7350961]
[1673586930600,0.04844798,1410.9,1410.8,41.76907165]
[1673586930793,0.04844798,1410.9,1410.8,50.64107165]
[1673586931006,0.04844798,1410.9,1410.8,51.10469738]
[1673586931319,0.04844798,1411.0,1410.8,51.10469738]
[1673586931567,0.04844798,1411.0,1410.9,13.90477047]
[1673586931779,0.04844798,1411.0,1410.9,42.69369411]
[1673586931992,0.04844798,1411.0,1410.9,43.15731984]
[1673586933475,0.04844798,1411.0,1410.9,45.27874879]
[1673586934269,0.04844798,1411.0,1410.9,43.15731984]
[1673586934477,0.04844798,1411.0,1410.9,45.27872055]
[1673586936831,0.04844798,1411.0,1410.9,42.62590092]
[1673586936994,0.04844798,1411.0,1410.9,45.27872055]
[1673586937203,0.04844798,1411.0,1410.9,42.62590092]
[1673586937961,0.04844798,1411.0,1410.9,45.27872055]
[1673586939407,0.04844798,1411.0,1410.9,44.81509482]
[1673586939830,0.04844798,1411.0,1410.9,45.27872055]
[1673586940294,0.04844798,1411.0,1410.9,42.62590092]
[1673586941752,0.04844798,1411.0,1410.9,45.27872055]
[1673586942355,0.04844798,1411.0,1410.9,41.14610243]
[1673586942600,0.04844798,1411.0,1410.9,45.27872055]
[1673586944560,0.04844798,1411.0,1410.9,42.62590092]
[1673586946292,0.04844798,1411.0,1410.9,45.27872055]
[1673586947420,0.04844798,1411.0,1410.9,43.15731984]
[1673586949741,0.04844798,1411.0,1410.9,45.2764363]
[1673586950498,0.04844798,1411.0,1410.9,43.15731984]
[1673586951786,0.0675454,1411.1,1410.9,43.15731984]
[1673586952093,0.0675454,1411.1,1411.0,39.22873364]
[1673586952466,5.4e-06,1411.1,1411.0,39.69235937]
[1673586952724,0.08332701,1411.2,1411.1,2.0]
[1673586952935,0.08332701,1411.2,1411.1,32.08719867]
[1673586953149,0.08332701,1411.2,1411.1,35.08719867]
[1673586953309,0.08332701,1411.2,1411.1,39.61311231]
[1673586954359,0.06445371,1411.2,1411.1,39.61311231]
[1673586954779,0.06445371,1411.2,1411.1,43.74573043]
[1673586955020,0.06445371,1411.2,1411.1,42.62026218]
[1673586955860,0.06445371,1411.2,1411.1,42.15663645]
[1673586957630,0.06445371,1411.2,1411.1,43.74482052]
[1673586958561,0.06445371,1411.2,1411.1,42.15663645]
[1673586959345,0.06445371,1411.2,1411.1,43.74489153]
[1673586960287,0.06445371,1411.2,1411.1,42.15663645]
[1673586961246,3.71e-06,1411.2,1411.1,44.80514469]
[1673586961399,0.06455904,1411.4,1411.1,44.80514469]
[1673586961764,0.06455904,1411.4,1411.3,29.40171741]
[1673586961971,0.06455904,1411.4,1411.3,32.40171741]
[1673586962767,0.06455904,1411.4,1411.3,31.34264]
[1673586963224,0.06455904,1411.4,1411.3,32.40171741]
[1673586965119,0.06455904,1411.4,1411.3,31.34264]
[1673586965281,0.06455904,1411.4,1411.3,36.32446049]
[1673586966179,0.06455904,1411.4,1411.3,36.32646049]
[1673586966355,0.06455904,1411.4,1411.3,36.32446049]
[1673586968435,0.04151438,1411.4,1411.3,36.32446049]
[1673586970015,0.04151438,1411.4,1411.3,31.34264]
[1673586970548,0.04151438,1411.4,1411.3,24.25698]
[1673586978970,1.55451438,1411.4,1411.3,24.25698]
[1673586981289,1.55451438,1411.4,1411.3,24.25898]
[1673586981622,1.55451438,1411.4,1411.3,24.25698]
[1673586984342,1.55451438,1411.4,1411.3,25.31605741]
[1673586984733,1.55451438,1411.4,1411.3,24.25698]
[1673586985063,1.55451438,1411.4,1411.3,25.31605741]
[1673586985276,0.04151438,1411.4,1411.3,25.31605741]
[1673586986131,0.55825706,1411.4,1411.3,25.31605741]
[1673586994001,0.55493291,1411.4,1411.3,25.31605741]
[1673586994621,0.55493291,1411.4,1411.3,26.90467353]